[Event "*** Titled Tuesday Blitz"]
[Site "Chess.com"]
[Date "2019.05.07"]
[Round "8"]
[White "Chebure"]
[Black "AlexandraBotez"]
[Result "1-0"]
[WhiteElo "2603"]
[BlackElo "2000"]
[TimeControl "180+2"]
[EndTime "14:52:32 PDT"]
[Termination "Chebure won by resignation"]

1. d4 {[%clk 0:03:01.9]} 1... Nf6 {[%clk 0:02:56.1]} 2. Bf4 {[%clk 0:03:03.3]}
2... d5 {[%clk 0:02:41.2]} 3. e3 {[%clk 0:03:03]} 3... e6 {[%clk 0:02:29.6]} 4.
Nf3 {[%clk 0:03:00]} 4... Nh5 {[%clk 0:02:30.5]} 5. Bg3 {[%clk 0:03:00.1]} 5...
Nxg3 {[%clk 0:02:31.2]} 6. hxg3 {[%clk 0:03:02]} 6... h6 {[%clk 0:02:32]} 7. Bd3
{[%clk 0:03:02.6]} 7... Nd7 {[%clk 0:02:16.7]} 8. Nbd2 {[%clk 0:03:01.2]} 8...
Be7 {[%clk 0:02:14.8]} 9. c3 {[%clk 0:02:59.7]} 9... b6 {[%clk 0:02:12]} 10. Qe2
{[%clk 0:02:59.9]} 10... Bb7 {[%clk 0:02:11]} 11. g4 {[%clk 0:02:54.6]} 11... c5
{[%clk 0:02:10]} 12. Bb5 {[%clk 0:02:52.1]} 12... a6 {[%clk 0:02:10]} 13. Ba4
{[%clk 0:02:51.8]} 13... Qc7 {[%clk 0:02:10.3]} 14. g5 {[%clk 0:02:46.1]} 14...
O-O-O {[%clk 0:02:06.4]} 15. gxh6 {[%clk 0:02:44.7]} 15... gxh6 {[%clk
0:02:01.8]} 16. Bc2 {[%clk 0:02:42.5]} 16... f5 {[%clk 0:01:58.5]} 17. Bd3
{[%clk 0:02:42.3]} 17... c4 {[%clk 0:01:55.6]} 18. Bc2 {[%clk 0:02:41.5]} 18...
Nf6 {[%clk 0:01:54.7]} 19. Ne5 {[%clk 0:02:41.7]} 19... Rh7 {[%clk 0:01:48.2]}
20. O-O-O {[%clk 0:02:35.5]} 20... Nd7 {[%clk 0:01:46.1]} 21. Ng6 {[%clk
0:02:26.1]} 21... Bf6 {[%clk 0:01:40.8]} 22. Nf4 {[%clk 0:02:25.3]} 22... Nf8
{[%clk 0:01:31.7]} 23. g4 {[%clk 0:02:25.2]} 23... Qd7 {[%clk 0:01:27.2]} 24.
gxf5 {[%clk 0:02:22.8]} 24... exf5 {[%clk 0:01:28.2]} 25. Rh5 {[%clk 0:02:20.8]}
25... Bg5 {[%clk 0:01:23.5]} 26. Nf3 {[%clk 0:02:11.6]} 26... Rf7 {[%clk
0:01:01.4]} 27. Ne5 {[%clk 0:02:10.9]} 27... Qe7 {[%clk 0:00:59.3]} 28. Qf3
{[%clk 0:01:59.9]} 28... Rf6 {[%clk 0:00:45.9]} 29. Nh3 {[%clk 0:01:52.4]} 29...
Kb8 {[%clk 0:00:38.8]} 30. Nxg5 {[%clk 0:01:52.4]} 30... hxg5 {[%clk 0:00:39.3]}
31. Rxg5 {[%clk 0:01:53.7]} 31... f4 {[%clk 0:00:38.7]} 32. exf4 {[%clk
0:01:52.5]} 32... Ne6 {[%clk 0:00:38.5]} 33. Rg4 {[%clk 0:01:47.5]} 33... b5
{[%clk 0:00:20]} 34. Rdg1 {[%clk 0:01:40.7]} 34... b4 {[%clk 0:00:18.7]} 35. Rg7
{[%clk 0:01:41]} 35... Qd6 {[%clk 0:00:18.5]} 36. Nf7 {[%clk 0:01:32.2]} 36...
Rxf4 {[%clk 0:00:18.7]} 37. Nxd6 {[%clk 0:01:31.8]} 37... Rxf3 {[%clk
0:00:18.8]} 38. Nxb7 {[%clk 0:01:29.1]} 38... bxc3 {[%clk 0:00:18.7]} 39. Nxd8
{[%clk 0:01:28.9]} 39... cxb2+ {[%clk 0:00:18.8]} 40. Kxb2 {[%clk 0:01:29.7]}
40... Nxd8 {[%clk 0:00:18.9]} 41. Rg8 {[%clk 0:01:29.8]} 41... Kc8 {[%clk
0:00:19.5]} 42. Rh1 {[%clk 0:01:26.6]} 1-0

[Event "*** Titled Tuesday Blitz"]
[Site "Chess.com"]
[Date "2019.05.07"]
[Round "8"]
[White "GameOverBro"]
[Black "IMRosen"]
[Result "0-1"]
[WhiteElo "2419"]
[BlackElo "2406"]
[TimeControl "180+2"]
[EndTime "14:52:35 PDT"]
[Termination "IMRosen won by resignation"]

1. e4 {[%clk 0:03:01.9]} 1... e5 {[%clk 0:02:56.4]} 2. Nf3 {[%clk 0:03:01.6]}
2... Nf6 {[%clk 0:02:57.2]} 3. d4 {[%clk 0:03:02.2]} 3... Nxe4 {[%clk
0:02:56.7]} 4. Bd3 {[%clk 0:03:02.7]} 4... d5 {[%clk 0:02:57.7]} 5. Nxe5 {[%clk
0:03:04.1]} 5... Nd7 {[%clk 0:02:59.2]} 6. Nxd7 {[%clk 0:03:04.5]} 6... Bxd7
{[%clk 0:02:57.4]} 7. O-O {[%clk 0:03:06.4]} 7... Be7 {[%clk 0:02:55.3]} 8. Nc3
{[%clk 0:03:07.3]} 8... Nxc3 {[%clk 0:02:00.4]} 9. bxc3 {[%clk 0:03:09.2]} 9...
Be6 {[%clk 0:02:02]} 10. Qh5 {[%clk 0:03:03.1]} 10... Qd6 {[%clk 0:01:53.9]} 11.
Re1 {[%clk 0:02:54.2]} 11... O-O-O {[%clk 0:01:46]} 12. a4 {[%clk 0:02:52.3]}
12... Bf6 {[%clk 0:01:32]} 13. g3 {[%clk 0:02:50.1]} 13... a6 {[%clk 0:01:26]}
14. Bf4 {[%clk 0:02:43.2]} 14... Qc6 {[%clk 0:01:27.4]} 15. Ra3 {[%clk 0:01:46]}
15... g6 {[%clk 0:01:25.6]} 16. Qf3 {[%clk 0:01:40.9]} 16... h5 {[%clk
0:01:05.8]} 17. Bxc7 {[%clk 0:01:38.7]} 17... Bg4 {[%clk 0:00:50.7]} 18. Qf4
{[%clk 0:01:28.8]} 18... g5 {[%clk 0:00:49.6]} 19. Bf5+ {[%clk 0:01:28.5]} 19...
Bxf5 {[%clk 0:00:49.6]} 20. Qxf5+ {[%clk 0:01:28.4]} 20... Kxc7 {[%clk
0:00:50.7]} 21. c4 {[%clk 0:01:22.6]} 21... dxc4 {[%clk 0:00:44.9]} 22. Rae3
{[%clk 0:01:22.4]} 22... Rd7 {[%clk 0:00:41.5]} 23. c3 {[%clk 0:01:19.9]} 23...
h4 {[%clk 0:00:37.7]} 24. g4 {[%clk 0:01:19.9]} 24... h3 {[%clk 0:00:35.7]} 25.
f3 {[%clk 0:01:21]} 25... Rhd8 {[%clk 0:00:30.5]} 26. a5 {[%clk 0:01:19.6]}
26... Kb8 {[%clk 0:00:30]} 27. Re8 {[%clk 0:01:17.2]} 27... Ka7 {[%clk
0:00:25.2]} 28. R8e4 {[%clk 0:01:13.1]} 28... Rd5 {[%clk 0:00:22.9]} 29. Qh7
{[%clk 0:01:12.9]} 29... Qd7 {[%clk 0:00:15.4]} 30. Qxh3 {[%clk 0:01:10.8]}
30... Rxa5 {[%clk 0:00:16]} 31. Qh6 {[%clk 0:01:09]} 31... Qd6 {[%clk
0:00:13.6]} 32. Qh5 {[%clk 0:01:08.4]} 32... Rh8 {[%clk 0:00:12.8]} 0-1

[Event "*** Titled Tuesday Blitz"]
[Site "Chess.com"]
[Date "2019.05.07"]
[Round "8"]
[White "Alopekos"]
[Black "mikhaillushenkov"]
[Result "1-0"]
[WhiteElo "2600"]
[BlackElo "2741"]
[TimeControl "180+2"]
[EndTime "14:52:36 PDT"]
[Termination "Alopekos won by checkmate"]

1. e4 {[%clk 0:03:01.9]} 1... e6 {[%clk 0:03:00.7]} 2. d4 {[%clk 0:03:01.8]}
2... d5 {[%clk 0:03:02.6]} 3. Nc3 {[%clk 0:03:02.9]} 3... Nf6 {[%clk 0:03:03.1]}
4. e5 {[%clk 0:03:04.3]} 4... Nfd7 {[%clk 0:03:03.2]} 5. Qg4 {[%clk 0:03:05.7]}
5... a6 {[%clk 0:02:57.4]} 6. Bg5 {[%clk 0:03:05.3]} 6... f5 {[%clk 0:02:29.6]}
7. Qh5+ {[%clk 0:02:43]} 7... g6 {[%clk 0:02:29.2]} 8. Bxd8 {[%clk 0:02:43.9]}
8... gxh5 {[%clk 0:02:30.6]} 9. Bxc7 {[%clk 0:02:36.5]} 9... Nc6 {[%clk
0:02:31.7]} 10. O-O-O {[%clk 0:02:30.8]} 10... Bh6+ {[%clk 0:02:31.9]} 11. Kb1
{[%clk 0:02:31.3]} 11... b5 {[%clk 0:02:22.6]} 12. Be2 {[%clk 0:02:16.6]} 12...
h4 {[%clk 0:02:23.4]} 13. Bh5+ {[%clk 0:02:16]} 13... Kf8 {[%clk 0:02:20.6]} 14.
Nf3 {[%clk 0:02:10.3]} 14... h3 {[%clk 0:02:10.6]} 15. gxh3 {[%clk 0:02:10.7]}
15... Rg8 {[%clk 0:02:01.1]} 16. Rhg1 {[%clk 0:02:06.8]} 16... Ne7 {[%clk
0:01:31.7]} 17. Bd6 {[%clk 0:01:56.9]} 17... Rg7 {[%clk 0:01:19.8]} 18. Rxg7
{[%clk 0:01:51.8]} 18... Bxg7 {[%clk 0:01:21.7]} 19. Ng5 {[%clk 0:01:28.1]}
19... Nb6 {[%clk 0:01:22]} 20. Nxh7+ {[%clk 0:01:26.5]} 20... Kg8 {[%clk
0:01:23.1]} 21. Nf6+ {[%clk 0:01:21.3]} 21... Kf8 {[%clk 0:01:22.5]} 22. Rg1
{[%clk 0:01:16.8]} 22... Ra7 {[%clk 0:01:21.5]} 23. Bc5 {[%clk 0:01:03]} 23...
Rb7 {[%clk 0:01:19.4]} 24. Ne8 {[%clk 0:00:55.9]} 24... Bh8 {[%clk 0:01:13.1]}
25. Nf6 {[%clk 0:00:37.2]} 25... Bg7 {[%clk 0:01:13.8]} 26. Ne2 {[%clk
0:00:35.8]} 26... Na4 {[%clk 0:01:05.7]} 27. Bd6 {[%clk 0:00:35.7]} 27... Nb6
{[%clk 0:00:31.1]} 28. Nf4 {[%clk 0:00:32.3]} 28... Nc4 {[%clk 0:00:28]} 29.
Ng6+ {[%clk 0:00:30.3]} 29... Kf7 {[%clk 0:00:29.2]} 30. Nxe7+ {[%clk
0:00:27.6]} 30... Kf8 {[%clk 0:00:30.5]} 31. Nh7# {[%clk 0:00:28.4]} 1-0

[Event "*** Titled Tuesday Blitz"]
[Site "Chess.com"]
[Date "2019.05.07"]
[Round "8"]
[White "GMJimKnopf"]
[Black "monalize"]
[Result "0-1"]
[WhiteElo "2365"]
[BlackElo "2341"]
[TimeControl "180+2"]
[EndTime "14:52:48 PDT"]
[Termination "monalize won on time"]

1. e4 {[%clk 0:03:01.9]} 1... c5 {[%clk 0:03:00.4]} 2. Nf3 {[%clk 0:03:03.4]}
2... d6 {[%clk 0:03:01.5]} 3. d4 {[%clk 0:03:04]} 3... cxd4 {[%clk 0:03:01.8]}
4. Nxd4 {[%clk 0:03:05.9]} 4... Nf6 {[%clk 0:03:02.4]} 5. Nc3 {[%clk 0:03:07.6]}
5... a6 {[%clk 0:03:02.7]} 6. Bc4 {[%clk 0:03:04.5]} 6... e6 {[%clk 0:03:01.5]}
7. Bb3 {[%clk 0:03:05.3]} 7... b5 {[%clk 0:03:01.4]} 8. Be3 {[%clk 0:02:55.1]}
8... Be7 {[%clk 0:03:01]} 9. Qe2 {[%clk 0:02:51.6]} 9... O-O {[%clk 0:03:00.4]}
10. f3 {[%clk 0:02:46.9]} 10... Qd7 {[%clk 0:02:43.1]} 11. O-O-O {[%clk
0:02:43.5]} 11... Qb7 {[%clk 0:02:32.8]} 12. g4 {[%clk 0:02:37.6]} 12... b4
{[%clk 0:02:32.7]} 13. Na4 {[%clk 0:02:34.1]} 13... Nfd7 {[%clk 0:02:30.6]} 14.
g5 {[%clk 0:02:29.5]} 14... Nc5 {[%clk 0:02:30.7]} 15. Kb1 {[%clk 0:01:56.6]}
15... Bd7 {[%clk 0:02:30.2]} 16. Nxc5 {[%clk 0:01:55]} 16... dxc5 {[%clk
0:02:30.1]} 17. Nf5 {[%clk 0:01:43.7]} 17... exf5 {[%clk 0:02:30]} 18. exf5
{[%clk 0:01:45.6]} 18... Bxf5 {[%clk 0:02:26.3]} 19. Bf4 {[%clk 0:01:16.3]}
19... Nc6 {[%clk 0:02:23.4]} 20. Bd5 {[%clk 0:01:05.9]} 20... Rac8 {[%clk
0:02:21.8]} 21. Rhe1 {[%clk 0:00:58.6]} 21... Rfe8 {[%clk 0:02:01]} 22. h4
{[%clk 0:00:30.3]} 22... g6 {[%clk 0:01:48]} 23. Qc4 {[%clk 0:00:26.3]} 23...
Bf8 {[%clk 0:01:47.1]} 24. Rh1 {[%clk 0:00:18.8]} 24... Be6 {[%clk 0:01:41.1]}
25. Bxe6 {[%clk 0:00:15.2]} 25... Rxe6 {[%clk 0:01:40.9]} 26. h5 {[%clk
0:00:16.9]} 26... Rce8 {[%clk 0:01:40]} 27. Qd5 {[%clk 0:00:10.8]} 27... Na5
{[%clk 0:01:37.6]} 28. Qd3 {[%clk 0:00:07.7]} 28... c4 {[%clk 0:01:37.1]} 29.
Qd4 {[%clk 0:00:06.3]} 29... Bg7 {[%clk 0:01:33.5]} 30. Qf2 {[%clk 0:00:06.9]}
30... Bf8 {[%clk 0:01:29.4]} 31. Qh4 {[%clk 0:00:07.1]} 31... b3 {[%clk
0:01:29.2]} 32. cxb3 {[%clk 0:00:06.6]} 32... cxb3 {[%clk 0:01:29.1]} 33. a3
{[%clk 0:00:08]} 33... Nc4 {[%clk 0:01:23.2]} 34. Rc1 {[%clk 0:00:07.8]} 34...
Nd6 {[%clk 0:01:21.4]} 35. Rhd1 {[%clk 0:00:06.6]} 35... Nf5 {[%clk 0:01:20.4]}
36. Qh3 {[%clk 0:00:05.5]} 36... Rc6 {[%clk 0:01:19.7]} 37. Rxc6 {[%clk
0:00:02.9]} 37... Qxc6 {[%clk 0:01:20]} 38. Rc1 {[%clk 0:00:03.4]} 38... Qd5
{[%clk 0:01:18.3]} 0-1

[Event "*** Titled Tuesday Blitz"]
[Site "Chess.com"]
[Date "2019.05.07"]
[Round "8"]
[White "kinga2008"]
[Black "Siemba"]
[Result "1-0"]
[WhiteElo "1938"]
[BlackElo "2062"]
[TimeControl "180+2"]
[EndTime "14:52:48 PDT"]
[Termination "kinga2008 won by checkmate"]

1. e4 {[%clk 0:03:01.9]} 1... c5 {[%clk 0:02:19.9]} 2. Nf3 {[%clk 0:03:02]} 2...
Nc6 {[%clk 0:02:15.5]} 3. d4 {[%clk 0:02:59.1]} 3... cxd4 {[%clk 0:02:17.4]} 4.
Nxd4 {[%clk 0:03:01]} 4... Nf6 {[%clk 0:02:14]} 5. Nc3 {[%clk 0:03:01.4]} 5...
e5 {[%clk 0:02:10.8]} 6. Ndb5 {[%clk 0:02:53.4]} 6... d6 {[%clk 0:02:10.4]} 7.
Bg5 {[%clk 0:02:48.8]} 7... a6 {[%clk 0:02:09.1]} 8. Bxf6 {[%clk 0:02:46.7]}
8... gxf6 {[%clk 0:02:07]} 9. Na3 {[%clk 0:02:46.5]} 9... b5 {[%clk 0:02:07.7]}
10. Nd5 {[%clk 0:02:46.2]} 10... f5 {[%clk 0:02:07.7]} 11. Qf3 {[%clk
0:02:35.6]} 11... fxe4 {[%clk 0:02:01.7]} 12. Nf6+ {[%clk 0:02:27.1]} 12... Ke7
{[%clk 0:01:59.7]} 13. Nxe4 {[%clk 0:02:05.6]} 13... f5 {[%clk 0:01:51.1]} 14.
Ng3 {[%clk 0:01:47.7]} 14... e4 {[%clk 0:01:13.3]} 15. Nxf5+ {[%clk 0:01:41.8]}
15... Kf6 {[%clk 0:01:05]} 16. Qxe4 {[%clk 0:01:26.2]} 16... Bxf5 {[%clk
0:01:04.3]} 17. Qxc6 {[%clk 0:01:26.5]} 17... Rc8 {[%clk 0:01:01.1]} 18. Qf3
{[%clk 0:01:16.3]} 18... h5 {[%clk 0:00:43.7]} 19. Bd3 {[%clk 0:01:08.1]} 19...
Rc5 {[%clk 0:00:40.1]} 20. O-O {[%clk 0:00:55.5]} 20... Rg8 {[%clk 0:00:38.4]}
21. Rae1 {[%clk 0:00:15.7]} 21... Bh6 {[%clk 0:00:33.4]} 22. b4 {[%clk
0:00:13.3]} 22... Re5 {[%clk 0:00:15.3]} 23. Rxe5 {[%clk 0:00:13]} 23... dxe5
{[%clk 0:00:17.2]} 24. Qxf5+ {[%clk 0:00:13.5]} 24... Kg7 {[%clk 0:00:17.3]} 25.
Qg6+ {[%clk 0:00:10.1]} 25... Kh8 {[%clk 0:00:13.7]} 26. Qxh6# {[%clk
0:00:08.7]} 1-0

[Event "*** Titled Tuesday Blitz"]
[Site "Chess.com"]
[Date "2019.05.07"]
[Round "8"]
[White "PE-TRO"]
[Black "CarrotsandPizza"]
[Result "1-0"]
[WhiteElo "2793"]
[BlackElo "2168"]
[TimeControl "180+2"]
[EndTime "14:52:49 PDT"]
[Termination "PE-TRO won on time"]

1. d4 {[%clk 0:03:01.9]} 1... Nf6 {[%clk 0:03:01.1]} 2. Nf3 {[%clk 0:02:54.7]}
2... g6 {[%clk 0:02:58.4]} 3. g3 {[%clk 0:02:55.8]} 3... Bg7 {[%clk 0:02:59.7]}
4. Bg2 {[%clk 0:02:57.1]} 4... O-O {[%clk 0:03:01.6]} 5. O-O {[%clk 0:02:58.5]}
5... d6 {[%clk 0:03:03.1]} 6. b3 {[%clk 0:02:43.7]} 6... a5 {[%clk 0:03:03.8]}
7. Nc3 {[%clk 0:02:41.5]} 7... d5 {[%clk 0:03:03.5]} 8. Bb2 {[%clk 0:02:42.7]}
8... c6 {[%clk 0:02:58.9]} 9. Ne5 {[%clk 0:02:43.5]} 9... Bf5 {[%clk 0:02:59.5]}
10. Re1 {[%clk 0:02:44.4]} 10... Nbd7 {[%clk 0:03:00.4]} 11. Nd3 {[%clk
0:02:44.4]} 11... Qc8 {[%clk 0:02:58]} 12. Na4 {[%clk 0:02:41.3]} 12... Qc7
{[%clk 0:02:52.3]} 13. f3 {[%clk 0:02:37.4]} 13... Ne8 {[%clk 0:02:46.8]} 14. e4
{[%clk 0:02:36.6]} 14... Be6 {[%clk 0:02:47.3]} 15. Nf4 {[%clk 0:02:33.1]} 15...
b5 {[%clk 0:02:29.6]} 16. Nxe6 {[%clk 0:02:33.9]} 16... fxe6 {[%clk 0:02:30.3]}
17. Nc3 {[%clk 0:02:35.3]} 17... Qb6 {[%clk 0:02:16.8]} 18. Ne2 {[%clk
0:02:25.3]} 18... a4 {[%clk 0:01:29]} 19. Bh3 {[%clk 0:02:17.2]} 19... Nc7
{[%clk 0:01:23.7]} 20. exd5 {[%clk 0:02:17.9]} 20... cxd5 {[%clk 0:01:19.4]} 21.
Nf4 {[%clk 0:02:01.2]} 21... a3 {[%clk 0:01:15.6]} 22. Bc3 {[%clk 0:02:01.9]}
22... b4 {[%clk 0:01:16.4]} 23. Nxe6 {[%clk 0:01:58.9]} 23... bxc3 {[%clk
0:01:12.8]} 24. Nxg7 {[%clk 0:01:57]} 24... Kxg7 {[%clk 0:00:05.3]} 25. Rxe7+
{[%clk 0:01:57.3]} 25... Rf7 {[%clk 0:00:06.2]} 26. Rxf7+ {[%clk 0:01:57.7]}
26... Kxf7 {[%clk 0:00:08.1]} 27. Bxd7 {[%clk 0:01:58.7]} 27... Ne6 {[%clk
0:00:08.3]} 28. Bxe6+ {[%clk 0:01:43.4]} 28... Kxe6 {[%clk 0:00:10.2]} 29. Qe2+
{[%clk 0:01:41.4]} 29... Kf7 {[%clk 0:00:11.5]} 30. Qe5 {[%clk 0:01:41.6]} 30...
Re8 {[%clk 0:00:10.5]} 31. Qxd5+ {[%clk 0:01:37.3]} 31... Kf8 {[%clk 0:00:06.4]}
32. Kf2 {[%clk 0:01:34.8]} 32... Rd8 {[%clk 0:00:04.9]} 33. Qc5+ {[%clk
0:01:25]} 33... Qxc5 {[%clk 0:00:04.8]} 34. dxc5 {[%clk 0:01:26.9]} 34... Rd2+
{[%clk 0:00:06.2]} 35. Ke3 {[%clk 0:01:28.5]} 35... Rxc2 {[%clk 0:00:07.8]} 36.
Kd3 {[%clk 0:01:29.7]} 36... Rxh2 {[%clk 0:00:04.9]} 37. Kxc3 {[%clk 0:01:30.6]}
37... Rf2 {[%clk 0:00:06]} 38. Rd1 {[%clk 0:01:22.7]} 38... Rxa2 {[%clk
0:00:05]} 39. c6 {[%clk 0:01:23.3]} 1-0

[Event "*** Titled Tuesday Blitz"]
[Site "Chess.com"]
[Date "2019.05.07"]
[Round "8"]
[White "LarissaSteenbekkers"]
[Black "Komissarov_alex"]
[Result "1-0"]
[WhiteElo "1981"]
[BlackElo "2101"]
[TimeControl "180+2"]
[EndTime "14:52:58 PDT"]
[Termination "LarissaSteenbekkers won on time"]

1. e4 {[%clk 0:02:55.5]} 1... e5 {[%clk 0:02:47]} 2. Nf3 {[%clk 0:02:54.7]} 2...
Nc6 {[%clk 0:02:45.6]} 3. Bb5 {[%clk 0:02:55.7]} 3... Nd4 {[%clk 0:02:45.5]} 4.
Nxd4 {[%clk 0:02:53.3]} 4... exd4 {[%clk 0:02:45.8]} 5. O-O {[%clk 0:02:54.4]}
5... c6 {[%clk 0:02:44.3]} 6. Ba4 {[%clk 0:02:52.7]} 6... Nf6 {[%clk 0:02:41.2]}
7. d3 {[%clk 0:02:50.2]} 7... d5 {[%clk 0:02:40.1]} 8. f4 {[%clk 0:02:45.1]}
8... dxe4 {[%clk 0:02:29.7]} 9. dxe4 {[%clk 0:02:44.5]} 9... Bc5 {[%clk
0:02:28.6]} 10. e5 {[%clk 0:02:41.3]} 10... d3+ {[%clk 0:02:20.9]} 11. Kh1
{[%clk 0:02:39.5]} 11... Ng4 {[%clk 0:02:19.3]} 12. Qe1 {[%clk 0:02:34.7]} 12...
dxc2 {[%clk 0:02:14]} 13. Bxc2 {[%clk 0:02:31.9]} 13... O-O {[%clk 0:01:57.6]}
14. f5 {[%clk 0:02:22.4]} 14... Qd5 {[%clk 0:01:35.3]} 15. Bf4 {[%clk
0:02:13.6]} 15... Re8 {[%clk 0:01:25.5]} 16. Nc3 {[%clk 0:02:08.5]} 16... Qc4
{[%clk 0:01:13.6]} 17. h3 {[%clk 0:01:59.1]} 17... Nh6 {[%clk 0:00:45.5]} 18.
Bxh6 {[%clk 0:01:56.7]} 18... gxh6 {[%clk 0:00:44]} 19. Bb3 {[%clk 0:01:38.3]}
19... Qd4 {[%clk 0:00:38.9]} 20. Qg3+ {[%clk 0:01:20.7]} 20... Kh8 {[%clk
0:00:36.4]} 21. Bxf7 {[%clk 0:01:08.3]} 21... Qxe5 {[%clk 0:00:34.9]} 22. Qh4
{[%clk 0:00:45]} 22... Qe7 {[%clk 0:00:20]} 23. Qh5 {[%clk 0:00:25.2]} 23... Rf8
{[%clk 0:00:18.6]} 24. Bg6 {[%clk 0:00:18.9]} 24... hxg6 {[%clk 0:00:08.5]} 25.
fxg6 {[%clk 0:00:17.6]} 1-0

[Event "*** Titled Tuesday Blitz"]
[Site "Chess.com"]
[Date "2019.05.07"]
[Round "8"]
[White "Sadikhov_Ulvi"]
[Black "ShimanovAlex"]
[Result "0-1"]
[WhiteElo "2695"]
[BlackElo "2846"]
[TimeControl "180+2"]
[EndTime "14:53:01 PDT"]
[Termination "ShimanovAlex won by resignation"]

1. Nf3 {[%clk 0:03:01.4]} 1... b5 {[%clk 0:02:50.5]} 2. g3 {[%clk 0:03:01.5]}
2... Bb7 {[%clk 0:02:51]} 3. Bg2 {[%clk 0:03:03.4]} 3... g6 {[%clk 0:02:51.8]}
4. O-O {[%clk 0:03:04.2]} 4... Bg7 {[%clk 0:02:53.3]} 5. d3 {[%clk 0:03:05.6]}
5... c5 {[%clk 0:02:52]} 6. e4 {[%clk 0:03:04.3]} 6... d6 {[%clk 0:02:52.4]} 7.
a4 {[%clk 0:03:02.8]} 7... b4 {[%clk 0:02:53]} 8. c3 {[%clk 0:02:59.8]} 8... a5
{[%clk 0:02:53.1]} 9. cxb4 {[%clk 0:02:58.4]} 9... axb4 {[%clk 0:02:54]} 10.
Nbd2 {[%clk 0:02:58.5]} 10... Nf6 {[%clk 0:02:54.3]} 11. Nc4 {[%clk 0:02:58.2]}
11... O-O {[%clk 0:02:55.1]} 12. Re1 {[%clk 0:02:57.2]} 12... Nc6 {[%clk
0:02:55]} 13. e5 {[%clk 0:02:49.7]} 13... Nd5 {[%clk 0:02:51.9]} 14. exd6 {[%clk
0:02:48.2]} 14... exd6 {[%clk 0:02:53]} 15. Bg5 {[%clk 0:02:27]} 15... Qd7
{[%clk 0:02:53.3]} 16. Nfd2 {[%clk 0:02:25]} 16... Nd4 {[%clk 0:02:54.4]} 17.
Ne4 {[%clk 0:02:24.1]} 17... Ra6 {[%clk 0:02:54.2]} 18. a5 {[%clk 0:02:06]}
18... h6 {[%clk 0:02:51.9]} 19. Be3 {[%clk 0:01:40]} 19... f5 {[%clk 0:02:51.9]}
20. Bxd4 {[%clk 0:01:40.1]} 20... Bxd4 {[%clk 0:02:53.8]} 21. Ned2 {[%clk
0:01:41.1]} 21... f4 {[%clk 0:02:50.5]} 22. Ne4 {[%clk 0:01:22.6]} 22... Kg7
{[%clk 0:02:47.1]} 23. Qd2 {[%clk 0:01:20.5]} 23... f3 {[%clk 0:02:46.9]} 24.
Bf1 {[%clk 0:01:19]} 24... Nc7 {[%clk 0:02:42.8]} 25. Qc2 {[%clk 0:00:45.7]}
25... Nb5 {[%clk 0:02:12.6]} 26. Ned2 {[%clk 0:00:43.6]} 26... Bf6 {[%clk
0:02:08.5]} 27. Nb3 {[%clk 0:00:40.9]} 27... Nd4 {[%clk 0:02:05.6]} 28. Nxd4
{[%clk 0:00:41.8]} 28... Bxd4 {[%clk 0:02:07.5]} 29. Nb6 {[%clk 0:00:40.8]}
29... Qf7 {[%clk 0:02:06.8]} 30. Qa4 {[%clk 0:00:20]} 30... h5 {[%clk
0:02:02.6]} 31. Qb5 {[%clk 0:00:19.4]} 31... h4 {[%clk 0:02:02.7]} 32. Nd7
{[%clk 0:00:20.4]} 32... hxg3 {[%clk 0:02:03]} 33. hxg3 {[%clk 0:00:21.6]} 33...
Bc6 {[%clk 0:01:08.4]} 34. Qxa6 {[%clk 0:00:22]} 34... Qxd7 {[%clk 0:01:10.3]}
35. Qc4 {[%clk 0:00:22.1]} 35... Qg4 {[%clk 0:01:08.1]} 36. Re3 {[%clk
0:00:22.9]} 36... d5 {[%clk 0:01:06.1]} 37. Qc1 {[%clk 0:00:23.6]} 37... Rh8
{[%clk 0:01:05.1]} 38. Qe1 {[%clk 0:00:10.2]} 38... Qh5 {[%clk 0:01:04]} 39.
Re7+ {[%clk 0:00:11]} 39... Kf8 {[%clk 0:01:05.1]} 40. Bh3 {[%clk 0:00:10.4]}
40... Qxh3 {[%clk 0:01:04]} 0-1

[Event "*** Titled Tuesday Blitz"]
[Site "Chess.com"]
[Date "2019.05.07"]
[Round "8"]
[White "ruvat"]
[Black "Koksal06"]
[Result "0-1"]
[WhiteElo "2350"]
[BlackElo "2498"]
[TimeControl "180+2"]
[EndTime "14:53:22 PDT"]
[Termination "Koksal06 won by resignation"]

1. d4 {[%clk 0:03:01.9]} 1... d5 {[%clk 0:03:00.8]} 2. Nf3 {[%clk 0:03:01.3]}
2... Bg4 {[%clk 0:03:01]} 3. Ne5 {[%clk 0:02:55.4]} 3... Bf5 {[%clk 0:03:02.1]}
4. c4 {[%clk 0:02:55.6]} 4... c6 {[%clk 0:02:58.9]} 5. Nc3 {[%clk 0:02:53.8]}
5... e6 {[%clk 0:02:57.6]} 6. Qb3 {[%clk 0:02:41.2]} 6... Qb6 {[%clk 0:02:58.5]}
7. e3 {[%clk 0:02:36.5]} 7... Nf6 {[%clk 0:02:57.1]} 8. Bd2 {[%clk 0:02:32.5]}
8... Nbd7 {[%clk 0:02:57.7]} 9. c5 {[%clk 0:02:32.7]} 9... Qxb3 {[%clk
0:02:55.7]} 10. axb3 {[%clk 0:02:34.6]} 10... Nxe5 {[%clk 0:02:56.8]} 11. dxe5
{[%clk 0:02:34.2]} 11... Nd7 {[%clk 0:02:58.4]} 12. b4 {[%clk 0:02:30.3]} 12...
Nxe5 {[%clk 0:02:58.6]} 13. f3 {[%clk 0:02:24.6]} 13... Bd3 {[%clk 0:02:59]} 14.
Ne2 {[%clk 0:02:13.2]} 14... Nc4 {[%clk 0:02:56.1]} 15. b3 {[%clk 0:02:06.6]}
15... Nxd2 {[%clk 0:02:53.6]} 16. Kxd2 {[%clk 0:02:08.5]} 16... Bb5 {[%clk
0:02:48.6]} 17. g3 {[%clk 0:02:02.5]} 17... Be7 {[%clk 0:02:46.7]} 18. Bg2
{[%clk 0:02:00.9]} 18... e5 {[%clk 0:02:26.3]} 19. Nc3 {[%clk 0:01:54.7]} 19...
Ba6 {[%clk 0:02:20.1]} 20. Rhe1 {[%clk 0:01:51]} 20... O-O {[%clk 0:02:19.2]}
21. Kc2 {[%clk 0:01:41.9]} 21... Bf6 {[%clk 0:02:10.8]} 22. Ra2 {[%clk
0:01:17.5]} 22... g6 {[%clk 0:02:08.4]} 23. Ne2 {[%clk 0:01:11.9]} 23... Kg7
{[%clk 0:02:04.4]} 24. f4 {[%clk 0:01:11.1]} 24... exf4 {[%clk 0:02:02.8]} 25.
Nxf4 {[%clk 0:01:07.4]} 25... Rfe8 {[%clk 0:01:59.6]} 26. Nd3 {[%clk 0:00:59.5]}
26... Re7 {[%clk 0:01:53.3]} 27. Nf2 {[%clk 0:00:58.5]} 27... Rae8 {[%clk
0:01:47.7]} 28. e4 {[%clk 0:00:58.2]} 28... Bd4 {[%clk 0:01:48.9]} 29. Nd3
{[%clk 0:00:50.1]} 29... dxe4 {[%clk 0:01:46.5]} 30. Nf4 {[%clk 0:00:45.6]}
30... Bd3+ {[%clk 0:01:23.1]} 31. Kd2 {[%clk 0:00:42]} 31... Ba6 {[%clk
0:01:14.7]} 32. Kc2 {[%clk 0:00:37.4]} 32... f5 {[%clk 0:01:15.8]} 33. Ne2
{[%clk 0:00:24.1]} 33... Bd3+ {[%clk 0:01:15]} 34. Kd2 {[%clk 0:00:22.7]} 34...
Bf6 {[%clk 0:01:12.5]} 35. Rxa7 {[%clk 0:00:19.2]} 35... Rd8 {[%clk 0:01:13.9]}
36. Kc1 {[%clk 0:00:19.2]} 36... Ba6 {[%clk 0:01:10.2]} 37. b5 {[%clk
0:00:17.8]} 37... Bxb5 {[%clk 0:01:10.6]} 38. Nf4 {[%clk 0:00:18.9]} 38... Bg5
{[%clk 0:01:09.3]} 39. Rd1 {[%clk 0:00:17.1]} 39... Rxd1+ {[%clk 0:01:09.7]} 40.
Kxd1 {[%clk 0:00:17.5]} 40... Bxf4 {[%clk 0:01:11]} 41. gxf4 {[%clk 0:00:17.8]}
41... Rd7+ {[%clk 0:01:12.4]} 42. Ke1 {[%clk 0:00:17.8]} 42... e3 {[%clk
0:01:09.6]} 43. Bf3 {[%clk 0:00:17.4]} 43... e2 {[%clk 0:00:58.1]} 44. h4 {[%clk
0:00:16.5]} 44... Rd1+ {[%clk 0:00:58.2]} 0-1